Cogmind - Beta 14 @@@ ROGUE MODE // 2024.11.05 @ 07:34:46 Player: Pitt Result: Destroyed by G-47 Trooper with Particle Gun Performance ------------- Evolutions (2) 1000 Regions Visited (3) 600 Robots Destroyed (54) 270 Value Destroyed (1223) 1223 Prototype IDs (2) 40 Alien Tech Used (0) 0 Bonus (27) 27 TOTAL SCORE: 3160 Bonus ------- High Alert Combat Kills 27 Cogmind --------- Core Integrity 0/550 Matter 132/300 Energy 100/100 System Corruption 0% Temperature Cool (27) Movement Flying (35) Location -8/Materials Parts ------- > --- POWER (1) -------- (None) > --- PROPULSION (2) --- Improved VTOL Module > --- UTILITY (6) ------ Machine Analyzer Machine Analyzer Signal Interpreter Terrain Scan Processor > --- WEAPON (2) ------- (None) > --- INVENTORY (5) ---- Faulty Improved VTOL Module Improved VTOL Module Heat Sink Structural Scanner Mining Laser Peak State ------------ > --- POWER ------------ Light Ion Engine > --- PROPULSION ------- Light Treads Armored Treads > --- UTILITY ---------- Improved Heat Sink Small Storage Unit Sensor Array Signal Interpreter Terrain Scanner Terrain Scan Processor > --- WEAPON ----------- Beam Rifle Beam Rifle > --- INVENTORY -------- Ion Engine Light Treads Light Treads Heat Sink Structural Scanner Improved Terrain Scanner Rocket Launcher Mining Laser [Rating: 19] Favorites ----------- Power Deuterium Engine Engine Deuterium Engine Power Core Light Nuclear Core Propulsion Wheel Treads Light Treads Wheel Wheel Flight Unit Improved VTOL Module Utility Small Storage Unit Device Sensor Array Storage Small Storage Unit Processor Terrain Scan Processor Weapon Medium Laser Energy Gun Medium Laser Energy Cannon Particle Cannon Ballistic Gun Heavy Assault Rifle Launcher Rocket Launcher Special Weapon Mining Laser Build | -11 -10 -9 -8 ------- Run | Yrd Mat Mat Mat Slots Evolved 4 | . . 2 2 Power . | . . . . Propulsion . | . . . . Utility 4 | . . 2 2 Weapon . | . . . . Parts Attached 71 | 9 8 35 19 Power 5 | 1 . 2 2 Engine 4 | 1 . 2 1 Core 1 | . . . 1 Reactor . | . . . . Propulsion 14 | 2 . 6 6 Treads 6 | . . 2 4 Leg . | . . . . Wheel 6 | 2 . 4 . Hover . | . . . . Flight 2 | . . . 2 Utility 20 | 3 3 9 5 Device 12 | 2 3 5 2 Storage 2 | 1 . 1 . Processor 6 | . . 3 3 Hackware . | . . . . Protection . | . . . . Artifact . | . . . . Weapon 32 | 3 5 18 6 Energy Gun 16 | 2 2 10 2 Energy Cannon 1 | . . . 1 Ballistic Gun 3 | 1 . 1 1 Ballistic Cannon . | . . . . Launcher 2 | . . . 2 Special Weapon 10 | . 3 7 . Impact Weapon . | . . . . Slashing Weapon . | . . . . Piercing Weapon . | . . . . Special Melee Weapon . | . . . . Unidentified Prototypes 2 | . . 1 1 Parts Lost 20 | . . 5 15 Power 4 | . . 1 3 Propulsion 4 | . . . 4 Utility 5 | . . 2 3 Weapon 7 | . . 2 5 Highest Loss Streak 7 | . . 3 7 To Critical Strikes . | . . . . Average Slot Usage (%) 96 | . 100 98 90 Engine 10 | . 14 10 7 Treads 6 | . . 3 15 Wheel 15 | . 28 18 . Device 20 | . 14 22 24 Storage 11 | . 14 11 8 Processor 10 | . . 10 18 Energy Gun 18 | . 26 17 13 Special Weapon 1 | . 1 3 . Peak Build Rating 19 | 9 9 16 19 Average Rating 12 | 6 8 13 16 On Entrance 7 | . 9 9 13 Naked Turns . | . . . . Heaviest Build 23 | 15 15 23 19 Greatest Support 40 | 20 20 40 40 Greatest Overweight (x) 4 | 1 . 1 4 Average Overweight (x) . | . . . . Largest Inventory Capacity 8 | 8 8 8 8 Average Capacity 7 | 7 8 8 7 Most Carried 8 | 5 8 8 8 Average Carried 7 | 2 7 7 7 Final Capacity 8 | 8 8 8 5 Final Carried 8 | 5 8 8 5 Class Distribution -------------------- 42% | Mutant 34% | Scavenger-Mutant 23% | Scavenger-Skirmisher Dominant Class ---------------- Mutant | -10/Materials Scavenger-Mutant | -9/Materials Scavenger-Skirmisher | -8/Materials Resources | -11 -10 -9 -8 ----------- Run | Yrd Mat Mat Mat Matter Collected 944 | 290 50 392 212 Remotely . | . . . . Salvage Created 1512 | 190 88 587 647 Parts 120 | 14 13 46 47 Haulers Intercepted 1 | . . . 1 Recyclers Shooed 5 | . 1 . 4 Parts Field Recycled . | . . . . Retrieved Matter . | . . . . Parts Self-Destructed . | . . . . Prevented . | . . . . Kills | -11 -10 -9 -8 ------- Run | Yrd Mat Mat Mat Combat Hostiles Destroyed 23 | . . 10 13 Melee 1 | . . . 1 Guns 13 | . . 9 4 Cannons 1 | . . . 1 AOE 6 | . . . 6 Classes Destroyed 11 | 3 1 3 4 Worker 2 | 1 . . 1 Builder 14 | . 4 4 6 Tunneler 6 | 5 . . 1 Hauler 1 | . . . 1 Recycler 3 | 1 . . 2 Watcher 5 | . . 3 2 Swarmer 3 | . . . 3 Grunt 9 | . . 7 2 Sentry 6 | . . 3 3 Specialist 2 | . . . 2 Hunter 3 | . . . 3 Best Kill Streak 14 | 3 3 4 14 Combat Bots Only 5 | . . 4 5 Max Kills in Single Turn 4 | 1 1 1 4 Gunslinging . | . . . . Exploded 2 | . . . 2 Melee 1 | . . . 1 Uniques/NPCs Destroyed . | . . . . Combat | -11 -10 -9 -8 -------- Run | Yrd Mat Mat Mat Hostile Shots Fired 249 | . . 58 191 Missed 80 | . . 17 63 Damage Taken 2969 | . . 855 2114 Core 696 | . . 146 550 Absorbed by Shields . | . . . . Core Remaining (%) 87 | 100 100 63 . Volleys Fired 154 | 26 15 55 58 Largest 2 | 2 2 2 2 Hottest 112 | 100 100 112 112 Shots Fired 244 | 52 24 92 76 Gun 192 | 52 19 78 43 Cannon 13 | . . . 13 Launcher 20 | . . . 20 Special 19 | . 5 14 . Kinetic 10 | . . 3 7 Thermal 214 | 52 24 89 49 Explosive 20 | . . . 20 Electromagnetic . | . . . . Robot Hit Streak 29 | 5 6 29 17 Robot Miss Streak 5 | 4 2 3 5 Penetration Max . | . . . . Secondary Targets . | . . . . Shots Hit Robots 138 | 21 9 57 51 Core Hits 73 | 8 5 22 38 Critical Kills . | . . . . Critical Parts Destroyed . | . . . . Critical Strikes 7 | 1 . 6 . Burn 7 | 1 . 6 . Melee Attacks . | . . . . Impact . | . . . . Slashing . | . . . . Piercing . | . . . . Sneak Attacks . | . . . . Combat Hostiles . | . . . . Follow-up Attacks . | . . . . Damage Inflicted 3478 | 287 111 765 2315 Guns 1727 | 287 111 765 564 Cannons 184 | . . . 184 Explosions 1562 | . . . 1562 Melee . | . . . . Ramming 5 | . . . 5 Kinetic 171 | . . 26 145 Thermal 1807 | 287 111 739 670 Explosive 1495 | . . . 1495 Electromagnetic . | . . . . Impact . | . . . . Slashing . | . . . . Piercing . | . . . . Highest Corruption 5 | . . 5 . Average Corruption 5 | . . 5 . Corruption Purged . | . . . . Corruption Blocked . | . . . . Effects 12 | . . 12 . Message Errors 3 | . . 3 . Matter Fused 2 | . . 2 . Heat Flow Errors 2 | . . 2 . Energy Discharges 2 | . . 2 . Parts Fused 1 | . . 1 . Data Loss (minor) 2 | . . 2 . Overload Shots . | . . . . Overflow Damage 35 | . . . 35 Projectiles . | . . . . Explosions 35 | . . . 35 Melee . | . . . . Knockbacks . | . . . . Impact . | . . . . Kinetic . | . . . . Secondary . | . . . . Self-Inflicted Damage 152 | . . . 152 Shots 4 | . . . 4 Rammed 2 | . . . 2 Targets Rammed 2 | . . . 2 Kicked . | . . . . Crushed . | . . . . Highest Temperature 417 | 194 136 368 417 Average Temperature 79 | 83 56 86 64 Received Heat Transfer 615 | . . 237 378 Effects 2 | . . . 2 Energy Bleed 1 | . . . 1 Matter Decay 1 | . . . 1 Siege Activations . | . . . . Robots Corrupted . | . . . . Combat Hostiles . | . . . . Parts Fried . | . . . . Impact Corruptions . | . . . . Robots Melted 1 | . . 1 . Combat Hostiles 1 | . . 1 . Parts Melted 14 | 3 1 7 3 Heat Transferred 5193 | 925 333 2479 1456 Parts Sabotaged . | . . . . Parts Stolen . | . . . . Parts Stripped . | . . . . Power Chain Reactions . | . . . . Alert | -11 -10 -9 -8 ------- Run | Yrd Mat Mat Mat Peak Influence 447 | 35 73 164 447 Initial 68 | . 22 . 68 Average 74 | 14 22 56 153 Maximum Alert Level 2 | . . . 2 Low Security (%) 90 | 100 100 100 69 Level 1 6 | . . . 21 Level 2 2 | . . . 9 Level 3 . | . . . . Level 4 . | . . . . Level 5 . | . . . . High Security . | . . . . Max Security . | . . . . Squads Dispatched 7 | . . 2 5 Investigation 2 | . . 2 . Extermination . | . . . . Reinforcement 5 | . . . 5 Assault . | . . . . Garrison . | . . . . Intercept . | . . . . Searches Triggered . | . . . . Construction Impeded 1 | . . . 1 Haulers Reinforced . | . . . . Active Scanning Responses . | . . . . Cargo Convoy Interrupts . | . . . . Stealth | -11 -10 -9 -8 --------- Run | Yrd Mat Mat Mat Distress Signals 3 | . . 1 2 Communications Jammed . | . . . . Distress Signals . | . . . . Times Spotted 44 | . 1 17 26 Peak Tracking Total 5 | . 1 5 5 Tactical Retreats 5 | . . 3 2 Traps | -11 -10 -9 -8 ------- Run | Yrd Mat Mat Mat Traps Triggered 2 | . . 2 . Indirectly . | . . . . Trap Hack Attempts . | . . . . Triggered . | . . . . Disarmed . | . . . . Reprogrammed . | . . . . Reused . | . . . . Traps Extracted . | . . . . Installed . | . . . . Triggered . | . . . . Machines | -11 -10 -9 -8 ---------- Run | Yrd Mat Mat Mat Machines Disabled 8 | . . 1 7 Max in Single Turn 2 | . . 1 2 Machines Repaired . | . . . . Machines Dismantled . | . . . . Machines Sabotaged . | . . . . Overloaded Fab Kills . | . . . . Hacking | -11 -10 -9 -8 --------- Run | Yrd Mat Mat Mat Machines Accessed 6 | . 2 3 1 Terminals 5 | . 2 3 . Fabricators . | . . . . Repair Stations . | . . . . Recycling Units 1 | . . . 1 Scanalyzers . | . . . . Garrison Access . | . . . . Total Hacks 16 | . 4 10 2 Successful 9 | . 1 8 . Failed 7 | . 3 2 2 Catastrophic 4 | . 2 1 1 Database Lockouts . | . . . . Manual 12 | . 3 9 . Terminals 14 | . 4 10 . Fabricators . | . . . . Repair Stations . | . . . . Recycling Units 2 | . . . 2 Scanalyzers . | . . . . Garrison Access . | . . . . Terminal Hacks 3 | . . 3 . Terminal Index 1 | . . 1 . Alert Level 1 | . . 1 . Zone Layout 1 | . . 1 . Fabricator Hacks . | . . . . Repair Station Hacks . | . . . . Recycling Unit Hacks . | . . . . Scanalyzer . | . . . . Garrison Access Hacks . | . . . . Unauthorized Hacks 6 | . 1 5 . Terminals 6 | . 1 5 . Track 1 | . . 1 . Botnet 3 | . 1 2 . Operators 2 | . . 2 . Fabricators . | . . . . Repair Stations . | . . . . Recycling Units . | . . . . Scanalyzers . | . . . . Garrison Access . | . . . . Data Cores Recovered . | . . . . Used . | . . . . Hacking Detections 6 | . 2 3 1 Full Trace Events . | . . . . Feedback Events . | . . . . Feedback Blocked . | . . . . Robot Schematics Acquired . | . . . . Robots Built . | . . . . Authchips . | . . . . Time . | . . . . Total Robot Build Rating . | . . . . Part Schematics Acquired . | . . . . Parts Built . | . . . . Authchips . | . . . . Time . | . . . . Total Part Build Rating . | . . . . Parts Repaired . | . . . . Time . | . . . . Parts Recycled . | . . . . Recycled Matter . | . . . . Retrieved Matter . | . . . . Retrieved Components . | . . . . Parts Scanalyzed . | . . . . Part Schematics Acquired . | . . . . Parts Damaged . | . . . . Bothacking | -11 -10 -9 -8 ------------ Run | Yrd Mat Mat Mat Used RIF Installer . | . . . . Robots Hacked . | . . . . Non-combat . | . . . . Combat . | . . . . Robot Hacks Applied . | . . . . Relay Couplers Released . | . . . . Fabnet Peak Effective % . | . . . . Robots Rewired . | . . . . Allies Hacked . | . . . . Hacks Repelled . | . . . . Allies | -11 -10 -9 -8 -------- Run | Yrd Mat Mat Mat Total Allies . | . . . . Largest Group . | . . . . Highest-Rated Group . | . . . . Highest-Rated Ally . | . . . . Total Orders . | . . . . Ally Attacks . | . . . . Total Damage . | . . . . Kills . | . . . . Allies Corrupted . | . . . . Allies Melted . | . . . . Intel | -11 -10 -9 -8 ------- Run | Yrd Mat Mat Mat Robot Analysis Total . | . . . . Derelict Logs Recovered . | . . . . Drone Launches . | . . . . Drone Recoveries . | . . . . Exploration | -11 -10 -9 -8 ------------- Run | Yrd Mat Mat Mat Turns Passed 4017 | 243 998 1582 1194 Spaces Moved 1118 | 179 148 412 379 Core 77 | 1 . . 76 Treads 403 | . . 120 283 Legs . | . . . . Wheels 618 | 178 148 292 . Hover . | . . . . Flight 20 | . . . 20 Fastest Speed 35 | 50 80 80 35 Average Speed 113 | 81 80 106 150 Slowest Speed 250 | 95 80 240 250 Overloaded Moves . | . . . . Propulsion Burnouts . | . . . . Robots Hopped . | . . . . Cave-ins Triggered 1 | . . 1 . Exploration Rate (%) 25 | 9 30 25 39 Regions Visited 3 Branch Regions . Pre-discovered Areas . | . . . . Known Exits Taken . | . . . . Unknown Exits Taken 3 | 1 1 1 . Scrap Searched . | . . . . Spaces Dug 19 | . 5 14 . Terrain Destroyed 131 | . 5 14 112 Melee . | . . . . Projectile 19 | . 5 14 . AOE 112 | . . . 112 Terrain Rammed . | . . . . Walls Destroyed . | . . . . Machines Disabled . | . . . . Actions | -11 -10 -9 -8 --------- Run | Yrd Mat Mat Mat Total 3561 | 218 989 1431 923 Wait 2174 | . 816 903 455 Move 1115 | 178 147 411 379 Hop . | . . . . Pick Up 23 | 5 3 10 5 Fast Attach 20 | 7 . 7 6 Attach 14 | . . 6 8 Detach 5 | . . 3 2 Swap 37 | 2 8 22 5 Drop 17 | . . 14 3 Fire 154 | 26 15 55 58 Melee . | . . . . Ram . | . . . . Kick . | . . . . Crush 2 | . . . 2 Escape Stasis . | . . . . Rewire . | . . . . Trap . | . . . . Miscellaneous . | . . . . Route ------- -11/Scrapyard -10/Materials -9/Materials (discovered 2 exits: *Mat / [*Min]) -8/Materials History --------- Turn | Location | Event 22 | -11/Scrapyard | Discovered new exit (range 15) 244 | -11/Scrapyard | Entered Materials 302 | -10/Materials | Build established: Mutant 797 | -10/Materials | Discovered new exit (range 12) 1242 | -10/Materials | Entered another Materials area 1242 | -9/Materials | Evolved 2 slots: Utility x2 1552 | -9/Materials | Build established: Scavenger-Mutant 1734 | -9/Materials | Discovered new exit (range 19) 2460 | -9/Materials | Crushed by falling debris 2491 | -9/Materials | Lost 3 parts (2u1w) 2573 | -9/Materials | Discovered new exit (range 16) 2824 | -9/Materials | Entered another Materials area 2824 | -8/Materials | Evolved 2 slots: Utility x2 3135 | -8/Materials | Build established: Scavenger-Skirmisher 3807 | -8/Materials | Core integrity fell below 50% 3834 | -8/Materials | Lost 7 parts (1p2n4w) 3987 | -8/Materials | Core integrity fell below 20% 4018 | -8/Materials | Destroyed by G-47 Trooper with Particle Gun Last Messages --------------- 03978_ K-01 Serf destroyed. 03984_ R-06 Scavenger collects Gauss Rifle. 03986_ Lgt. Treads destroyed. 03989_ Lgt. Nuclear Core destroyed. 03990_ Critical hit (Burn: +37). 03991_ R-06 Scavenger collects Assault Rifle. 03993_ K-01 Serf collects debris. 03995_ R-06 Scavenger collects Com. Wheel. 03996_ K-01 Serf collects debris. 03997_ Particle Cannon destroyed. 03998_ Sensor Array destroyed. 04000_ Dropped Sml. Storage Unit. 04000_ K-01 Serf collects debris. 04001_ Dropped Imp. Terrain Scanner. 04002_ Acquired Imp. VTOL Module. 04003_ Critical hit (Burn: +37). 04003_ Acquired Imp. VTOL Module. 04003_ K-01 Serf collects debris. 04008_ Acquired Machine Analyzer. 04018_ Critical hit (Burn: +37). Map ----- +----------------------------------------------------+ | ?????????????????????????????????????????????????? | | ?????????????????????????????????????????????????? | | ?????????????????????????????????????????????????? | | ?????????????????????????????????????????????????? | | ?????????????????????????????????????????????????? | | ?????????????????????????????????????????????????? | | ??????????????????????????????????????????????# ?? | | ????????????????????????????????????????????????? | | ??????????????????????????????????????????????? /? | | ???????????????????????????????????????????? ????? | | ?????????????????????????????????????????????##??? | | ????????????????????????????????????????????? ?? | | ????????????????????? ????????????????????????### | | ????????????????????? ??????????????????#????????# | | ????????????????????? ????????????????#????#???#?? | | ????????????????????# ????????????################ | | ????????????????????# ????????????? | | ??????????????????### ###????????? | | ??????????????????# #????????# """ " """ | | ??????????????????# #????????# """ " "Y" | | ??????????????????# #????????# """ "" " " | | ??????????????????# ?????????# """ | | ??????????????????# ?????????# """ " | | ???????????????????# ########### ! | | ???????????????????# # = !! # % ! | | ???????????????????# # @ ! # """ " !!! | | ???????????????????+ g l ! # """ """ | | ???????????????????# g# = # """ """ | | ???????????????????# ########### """ """ | | ???????????????????#! #??######## "" """ | | ???????????????????# #??# | | ???????????######### #??# | | ???????????# #??# | | ???????????# #??# ###+######+## | | ???????????# != #??# #??????????? | | ???????????# ! ] #??# """"" #????????"? | | ???????????# ] #### """"" #?????????? ? | | ???????????## %= """"" #???????????? | | ????????????# % #???????????? | | ????????????# """ #???????????? | | ????????????# "" ###############???????????? | | ????????????# """ #?????????????????????????? | | ????????????# #?????????????????????????? | | ????????????# #?????????????????????????? | | ????????????# ?????????????????????????# | | ????????????+ ????????????????????????? | | ????????????# ???????????????????????? | | ????????????# ##########???????????????????????? | | ????????????# ?????????????????????????????????? | | ????????????# ??????????????????????????????????? | +----------------------------------------------------+ Best States ------------- Heat Dissipation 45 Energy Generation 14 Energy Capacity 275 Matter Stores 300 Matter Capacity 300 Sight Range 16 Robot Scan Range 14 Terrain Scan Range 16 Terrain Scan Density 85 Evasion (%) 50 Recoil Reduction 2 Item Schematics ----------------- None Robot Schematics ------------------ None Fabricated ------------ Nothing Alien Tech Used ----------------- None Achievements -------------- None Challenges ------------ None Game ------ Seed ArmorProcessingNullifier Manual? 0 Play Time 00:31:45 Cumulative 222.1 hours Start 2024.11.05 @ 06:23:54 End 2024.11.05 @ 07:34:46 Sessions 1 Manual Loads 0 Difficulty Rogue Special Mode None Game No. 346 Rogue 346 Adventurer 0 Explorer 0 Win Type - Total 0 Types 0/0/0/0/0/0/0/0/0 Lore% 38 Gallery% 56 Achievement% 41 Wizard Run 0 Options --------- Layout 0 ASCII 0 Keyboard 0 Movement Mouse Keybinds 0 Fullscreen 1 Font 18/SmallcapsGlow Map View 76x50 Zoom Use 0% Tactical HUD 1 Map Filters NONE Filters NONE Steam 1 RUN: 25335b91-4ea0-402f-baeb-a0dcbd1fabb4